Cogmind - Beta 9.3 @@@ ROGUE MODE // 2019.12.22 @ 03:02:38 // Winter2019/RPGLIKE Player: badjay Result: Destroyed by S-27 Virus with Autogun Performance ------------- Evolutions (3) 1500 Regions Visited (4) 800 Robots Destroyed (1) 5 Value Destroyed (10) 10 Prototype IDs (13) 260 Alien Tech Used (0) 0 Bonus (0) 0 TOTAL SCORE: 2575 Bonus ------- None Cogmind --------- Core Integrity 0/600 Matter 142/300 Energy 30/100 System Corruption 0% Temperature Cool (2) Movement Flying (40) Location -7/Factory Parts ------- > --- POWER (2) -------- (None) > --- PROPULSION (2) --- Flight Unit VTOL Module > --- UTILITY (5) ------ Long-range Terrain Scanner Advanced Terrain Scan Processor Maneuvering Thrusters Hacking Suite Hacking Suite > --- WEAPON (1) ------- Spear > --- INVENTORY (1) ---- Cooled Ion Engine Peak State ------------ > --- POWER ------------ (None) > --- PROPULSION ------- Flight Unit VTOL Module > --- UTILITY ---------- Long-range Terrain Scanner Advanced Terrain Scan Processor Maneuvering Thrusters Hacking Suite Hacking Suite > --- WEAPON ----------- Spear > --- INVENTORY -------- Cooled Ion Engine [Rating: 24] Favorites ----------- Power Cooled Ion Engine Engine Cooled Ion Engine Propulsion Flight Unit Flight Unit Flight Unit Utility Hacking Suite Device Maneuvering Thrusters Processor Advanced Terrain Scan Processor Hackware Hacking Suite Weapon Mining Claw Slashing Weapon Mining Claw Piercing Weapon Spear Build | -11 -10 -9 -8 -7 ------- Run | Scr Mat Mat Mat Fac Slots Evolved 6 | . 3 . . 3 Power 1 | . 1 . . . Propulsion 1 | . 1 . . . Utility 4 | . 1 . . 3 Weapon . | . . . . . Parts Attached 18 | . 3 1 3 11 Power 3 | . 1 1 . 1 Engine 3 | . 1 1 . 1 Core . | . . . . . Reactor . | . . . . . Propulsion 4 | . 1 . 3 . Treads . | . . . . . Leg . | . . . . . Wheel . | . . . . . Hover . | . . . . . Flight 4 | . 1 . 3 . Utility 9 | . . . . 9 Device 4 | . . . . 4 Storage . | . . . . . Processor 1 | . . . . 1 Hackware 4 | . . . . 4 Protection . | . . . . . Artifact . | . . . . . Weapon 2 | . 1 . . 1 Energy Gun . | . . . . . Energy Cannon . | . . . . . Ballistic Gun . | . . . . . Ballistic Cannon . | . . . . . Launcher . | . . . . . Special Weapon . | . . . . . Impact Weapon . | . . . . . Slashing Weapon 1 | . 1 . . . Piercing Weapon 1 | . . . . 1 Special Melee Weapon . | . . . . . Unidentified Prototypes 3 | . . 1 1 1 Parts Lost . | . . . . . Power . | . . . . . Propulsion . | . . . . . Utility . | . . . . . Weapon . | . . . . . Highest Loss Streak . | . . . . . Average Slot Usage (%) 47 | . 19 28 31 69 Flight 15 | . 5 14 17 20 Device 7 | . . . . 14 Hackware 12 | . . . . 23 Slashing Weapon 11 | . 12 14 14 9 Naked Turns 44 | . 44 . . . Heaviest Build 5 | . 5 2 2 5 Greatest Support 9 | 3 4 4 9 9 Greatest Overweight (x) 1 | . 1 . . . Average Overweight (x) . | . . . . . Largest Inventory Capacity 1 | . . . . 1 Average Capacity . | . . . . . Most Carried 1 | . . . . 1 Average Carried . | . . . . . Final Capacity 1 | . . . . 1 Final Carried 1 | . . . . 1 Class Distribution -------------------- 76% | Hacker-Mutant 11% | Wizard-Mutant 11% | Mutant Dominant Class ---------------- Hacker-Mutant | -10/Materials Hacker-Mutant | -9/Materials Hacker-Mutant | -8/Materials Hacker-Mutant | -7/Factory Resources | -11 -10 -9 -8 -7 ----------- Run | Scr Mat Mat Mat Fac Matter Collected 222 | 180 19 . 23 . Remotely . | . . . . . Salvage Created 19 | . 19 . . . Parts 2 | . 2 . . . Haulers Intercepted . | . . . . . Recyclers Shooed 2 | . 2 . . . Parts Field Recycled . | . . . . . Retrieved Matter . | . . . . . Parts Self-Destructed . | . . . . . Prevented . | . . . . . Kills | -11 -10 -9 -8 -7 ------- Run | Scr Mat Mat Mat Fac Combat Hostiles Destroyed 1 | . 1 . . . Melee 1 | . 1 . . . Classes Destroyed 1 | . 1 . . . Swarmer 1 | . 1 . . . Best Kill Streak 1 | . 1 . . . Combat Bots Only 1 | . 1 . . . Max Kills in Single Turn 1 | . 1 . . . Gunslinging . | . . . . . Exploded . | . . . . . Melee 1 | . 1 . . . Uniques/NPCs Destroyed . | . . . . . Combat | -11 -10 -9 -8 -7 -------- Run | Scr Mat Mat Mat Fac Damage Taken 649 | . 125 160 80 284 Core 607 | . 121 157 76 253 Absorbed by Shields . | . . . . . Redirected to Core 144 | . 14 11 14 105 Core Remaining (%) 68 | 100 79 53 41 . Volleys Fired . | . . . . . Largest . | . . . . . Hottest . | . . . . . Shots Fired . | . . . . . Gun . | . . . . . Cannon . | . . . . . Launcher . | . . . . . Special . | . . . . . Kinetic . | . . . . . Thermal . | . . . . . Explosive . | . . . . . Electromagnetic . | . . . . . Robot Hit Streak . | . . . . . Robot Miss Streak . | . . . . . Penetration Max . | . . . . . Secondary Targets . | . . . . . Shots Hit Robots 6 | . 5 1 . . Core Hits 1 | . 1 . . . Critical Hits . | . . . . . Critical Kills . | . . . . . Critical Parts Destroyed . | . . . . . Melee Attacks 21 | . 14 1 1 5 Impact . | . . . . . Slashing 21 | . 14 1 1 5 Piercing . | . . . . . Sneak Attacks 1 | . 1 . . . Combat Hostiles . | . . . . . Follow-up Attacks . | . . . . . Damage Inflicted 191 | . 164 27 . . Guns . | . . . . . Cannons . | . . . . . Explosions . | . . . . . Melee 191 | . 164 27 . . Ramming . | . . . . . Kinetic . | . . . . . Thermal . | . . . . . Explosive . | . . . . . Electromagnetic . | . . . . . Impact . | . . . . . Slashing 191 | . 164 27 . . Piercing . | . . . . . Highest Corruption 4 | . 2 . 4 . Average Corruption 2 | . 2 . 4 . Corruption Purged . | . . . . . Overload Shots . | . . . . . Overflow Damage 29 | . 29 . . . Projectiles . | . . . . . Explosions . | . . . . . Melee 29 | . 29 . . . Knockbacks . | . . . . . Impact . | . . . . . Kinetic . | . . . . . Secondary . | . . . . . Self-Inflicted Damage . | . . . . . Shots . | . . . . . Rammed . | . . . . . Targets Rammed . | . . . . . Kicked . | . . . . . Crushed . | . . . . . Highest Temperature . | . . . . . Average Temperature . | . . . . . Received Heat Transfer 108 | . . 36 45 27 Siege Activations . | . . . . . Robots Corrupted . | . . . . . Combat Hostiles . | . . . . . Parts Fried . | . . . . . Impact Corruptions . | . . . . . Robots Melted . | . . . . . Combat Hostiles . | . . . . . Parts Melted . | . . . . . Heat Transferred . | . . . . . Parts Sabotaged . | . . . . . Parts Stolen . | . . . . . Parts Stripped . | . . . . . Power Chain Reactions . | . . . . . Missiles Intercepted . | . . . . . Alert | -11 -10 -9 -8 -7 ------- Run | Scr Mat Mat Mat Fac Peak Influence 190 | . 43 77 77 190 Average Influence 61 | . 12 35 56 93 Maximum Alert Level . | . . . . . Low Security (%) 100 | 100 100 100 100 100 Level 1 . | . . . . . Level 2 . | . . . . . Level 3 . | . . . . . Level 4 . | . . . . . Level 5 . | . . . . . High Security . | . . . . . Max Security . | . . . . . Squads Dispatched 2 | . 1 . . 1 Investigation 1 | . . . . 1 Extermination . | . . . . . Reinforcement 1 | . 1 . . . Assault . | . . . . . Garrison . | . . . . . Intercept . | . . . . . Construction Impeded . | . . . . . Haulers Reinforced . | . . . . . Stealth | -11 -10 -9 -8 -7 --------- Run | Scr Mat Mat Mat Fac Distress Signals 2 | . . 2 . . Communications Jammed . | . . . . . Distress Signals . | . . . . . Times Spotted 48 | . 5 9 4 30 Peak Tracking Total 12 | . 4 10 4 12 Tactical Retreats 6 | . 1 . . 5 Traps | -11 -10 -9 -8 -7 ------- Run | Scr Mat Mat Mat Fac Traps Triggered 1 | . 1 . . . Indirectly . | . . . . . Trap Hack Attempts . | . . . . . Triggered . | . . . . . Disarmed . | . . . . . Reprogrammed . | . . . . . Reused . | . . . . . Traps Extracted . | . . . . . Installed . | . . . . . Triggered . | . . . . . Machines | -11 -10 -9 -8 -7 ---------- Run | Scr Mat Mat Mat Fac Machines Disabled . | . . . . . Max in Single Turn . | . . . . . Machines Sabotaged . | . . . . . Garrisons Compromised . | . . . . . Overloaded Fab Kills . | . . . . . Fab Network Shutdowns . | . . . . . Hacking | -11 -10 -9 -8 -7 --------- Run | Scr Mat Mat Mat Fac Machines Accessed 11 | . 2 . 4 5 Terminals 10 | . 2 . 4 4 Fabricators 1 | . . . . 1 Repair Stations . | . . . . . Recycling Units . | . . . . . Scanalyzers . | . . . . . Garrison Access . | . . . . . Total Hacks 66 | . 17 . 18 31 Successful 38 | . 7 . 8 23 Failed 28 | . 10 . 10 8 Catastrophic 3 | . 2 . 1 . Database Lockouts . | . . . . . Manual 47 | . 15 . 12 20 Terminals 65 | . 17 . 18 30 Fabricators 1 | . . . . 1 Repair Stations . | . . . . . Recycling Units . | . . . . . Scanalyzers . | . . . . . Garrison Access . | . . . . . Terminal Hacks 24 | . 4 . 5 15 Part Schematic 4 | . . . . 4 Prototype ID Bank 5 | . 1 . 1 3 Branch Access Points 1 | . . . 1 . Emergency Access Points 2 | . . . . 2 Terminal Index 2 | . . . 1 1 Fabricator Index 1 | . . . . 1 Dispatch Records 1 | . 1 . . . Registered Components 1 | . . . . 1 Registered Prototypes 1 | . . . . 1 Zone Layout 6 | . 2 . 2 2 Fabricator Hacks 1 | . . . . 1 Build 1 | . . . . 1 Repair Station Hacks . | . . . . . Recycling Unit Hacks . | . . . . . Scanalyzer . | . . . . . Garrison Access Hacks . | . . . . . Unauthorized Hacks 33 | . 9 . 10 14 Terminals 13 | . 3 . 3 7 Track 6 | . 2 . 1 3 Botnet 5 | . 1 . 1 3 Operators 2 | . . . 1 1 Fabricators . | . . . . . Repair Stations . | . . . . . Recycling Units . | . . . . . Scanalyzers . | . . . . . Garrison Access . | . . . . . Data Cores Recovered . | . . . . . Used . | . . . . . Hacking Detections 10 | . 2 . 4 4 Full Trace Events 1 | . . . . 1 Feedback Events . | . . . . . Feedback Blocked . | . . . . . Robot Schematics Acquired . | . . . . . Robots Built . | . . . . . Matter . | . . . . . Time . | . . . . . Total Robot Build Rating . | . . . . . Part Schematics Acquired 3 | . . . . 3 Parts Built 1 | . . . . 1 Matter 234 | . . . . 234 Time 58 | . . . . 58 Total Part Build Rating 7 | . . . . 7 Parts Repaired . | . . . . . Time . | . . . . . Parts Recycled . | . . . . . Recycled Matter . | . . . . . Retrieved Matter . | . . . . . Retrieved Components . | . . . . . Parts Scanalyzed . | . . . . . Part Schematics Acquired . | . . . . . Parts Damaged . | . . . . . Bothacking | -11 -10 -9 -8 -7 ------------ Run | Scr Mat Mat Mat Fac Used RIF Installer . | . . . . . Robots Hacked . | . . . . . Non-combat . | . . . . . Combat . | . . . . . Robot Hacks Applied . | . . . . . Relay Couplers Released . | . . . . . Robots Rewired . | . . . . . Allies Hacked . | . . . . . Hacks Repelled . | . . . . . Allies | -11 -10 -9 -8 -7 -------- Run | Scr Mat Mat Mat Fac Total Allies . | . . . . . Largest Group . | . . . . . Highest-Rated Group . | . . . . . Highest-Rated Ally . | . . . . . Total Orders . | . . . . . Ally Attacks . | . . . . . Total Damage . | . . . . . Kills . | . . . . . Allies Corrupted . | . . . . . Allies Melted . | . . . . . Intel | -11 -10 -9 -8 -7 ------- Run | Scr Mat Mat Mat Fac Robot Analysis Total . | . . . . . Derelict Logs Recovered . | . . . . . Drone Launches . | . . . . . Drone Recoveries . | . . . . . Exploration | -11 -10 -9 -8 -7 ------------- Run | Scr Mat Mat Mat Fac Turns Passed 720 | 14 165 93 80 368 Spaces Moved 1304 | 29 149 219 180 727 Core 139 | 29 110 . . . Treads . | . . . . . Legs . | . . . . . Wheels . | . . . . . Hover . | . . . . . Flight 1165 | . 39 219 180 727 Fastest Speed 37 | 50 40 40 37 37 Average Speed 41 | 50 50 40 39 39 Slowest Speed 120 | 50 120 40 40 40 Overloaded Moves . | . . . . . Propulsion Burnouts . | . . . . . Robots Hopped 8 | . . 1 . 7 Cave-ins Triggered . | . . . . . Exploration Rate (%) 18 | 3 23 20 24 20 Regions Visited 4 Branch Regions . Pre-discovered Areas . | . . . . . Known Exits Taken . | . . . . . Unknown Exits Taken 4 | 1 1 1 1 . Scrap Searched . | . . . . . Spaces Dug 7 | . 5 . 1 1 Terrain Destroyed 7 | . 5 . 1 1 Melee 7 | . 5 . 1 1 Projectile . | . . . . . AOE . | . . . . . Actions | -11 -10 -9 -8 -7 --------- Run | Scr Mat Mat Mat Fac Total 1431 | 28 209 220 185 789 Wait 90 | . 43 . . 47 Move 1284 | 28 148 216 179 713 Hop 8 | . . 1 . 7 Pick Up . | . . . . . Fast Attach 17 | . 3 1 3 10 Attach 1 | . . . . 1 Detach 2 | . . . . 2 Swap . | . . . . . Drop 8 | . 1 1 2 4 Fire . | . . . . . Melee 21 | . 14 1 1 5 Ram . | . . . . . Kick . | . . . . . Crush . | . . . . . Escape Stasis . | . . . . . Rewire . | . . . . . Trap . | . . . . . Miscellaneous . | . . . . . Route ------- -11/Scrapyard -10/Materials -9/Materials -8/Materials -7/Factory History --------- Turn | Location | Event 5 | -11/Scrapyard | Discovered new exit (range 16) 15 | -11/Scrapyard | Entered Materials 85 | -10/Materials | Upgraded with Power slot (x1) 85 | -10/Materials | Upgraded with Propulsion slot (x1) 85 | -10/Materials | Upgraded with Utility slot (x1) 85 | -10/Materials | Discovered new exit (range 16) 180 | -10/Materials | Entered another Materials area 182 | -9/Materials | Reached level 2 267 | -9/Materials | Discovered new exit (range 16) 273 | -9/Materials | Entered another Materials area 275 | -8/Materials | Reached level 3 340 | -8/Materials | Discovered new exit (range 14) 346 | -8/Materials | Core integrity fell below 50% 353 | -8/Materials | Entered Factory 354 | -7/Factory | Core integrity fell below 50% 355 | -7/Factory | Reached level 4 358 | -7/Factory | Upgraded with Utility slot (x3) 387 | -7/Factory | Build established: Hacker-Mutant 623 | -7/Factory | Fabricated Adv. Transmission Jammer? 676 | -7/Factory | Core integrity fell below 20% 721 | -7/Factory | Destroyed by S-27 Virus with Autogun Last Messages --------------- Tracking enabled and active. >>Schematic(Adv. Terrain Scan Processor) Downloading schematic... Adv. Terrain Scan Processor Rating: 4 Schematic downloaded. >>Schematic(Adv. Sensor Array) Downloading schematic... Adv. Sensor Array Rating: 3 Existing schematic match found. 00623_ >> FABRICATOR: Completed Adv. Transmission Jammer? 00637_ K-01 Serf cleans the Nuclear Reactor. 00663_ Dropped Adv. Terrain Scanner. 00665_ Acquired Lrn. Terrain Scanner. 00667_ Discarded Hacking Suite. 00670_ Acquired Adv. Terrain Scan Processor. 00675_ Penetrated by Slug. 00710_ Dropped Mining Claw. 00711_ Acquired Spear. Map ----- +----------------------------------------------------+ | ?????????????????????????????????????????????????? | | ?????????????????????????????????????????????????? | | ??????? ?????????????????????????????????????????? | | ??????" ???? "?? ????????????????????????????????? | | # ???" "??" """ ??????????????????????????????? | | # ?""" """" #????????????????????????????? | | # """" """" ###+?????????????????????????? | | # """" """" ???????????????????????? | | # ??????????????????????? | | # ?????????????????????? | | + ????????????????????? | | # ????????????????????? | | # [ #?????????????????????? | | # k #?????????????????????? | | k #?????????????????????? | | / #?????????????????????? | | #?????????????????????? | | ] #?????????????????????? | | s #?????????????????????? | | ]// #########s #?????????????????????? | | // # ???? ?# s #?????????????????????? | | // #?? ???# +?????????????????????? | | / #? ???? + #?????????????????????? | | #???????# +?????????????????????? | | """ #??"?? ?# #?????????????????????? | | """ #???"" ?# @ #?????????????????????? | | """ #?? ??? # ###### #?????????????????????? | | #? ?????# #????? #?????????????????????? | | """ # ???"? # +??????#?????????????????????? | | """ # ??""?# #???????#????????????????????? | | """ !# ?? ??# #??????#?????????????????????? | | #???????# +?? ?????????????????????????? | | ####????# #?? ?# ??????????????????????? | | # #?##????###+###????????????????????????????? | | # #??#??? ???? ??????????????????????????????? | | # #???? ?????????????????????????????????????? | | # #?????????? ????#? ???????????????????????? | | #?????"????????!???????????????????????????? | | #####??"?? ???? ?????"?????????????????????? | | #?##??"""????? ??? ?????#??????????????????? | | ###/#######?? ?? ?? ? ???????????????????????????? | | # ?"???"???????????????????????????????? | | #????"????? ????#??#???????????????????? | | """"""""" #?""?"??"?"??????#?????????????????????? | | #????? ?"??????????????????????????????? | | """"""""" #??? ??????????#?? ?"??????????????????? | | #???#???????????##?????????????????????? | | """"""""" #???#??????????????????????????????????? | | #??????????#??#????????????????????????? | | """"""""" #???????????#??#???????????????????????? | +----------------------------------------------------+ Best States ------------- Heat Dissipation 25 Energy Generation 14 Energy Capacity 280 Matter Stores 280 Matter Capacity 300 Sight Range 16 Terrain Scan Range 24 Terrain Scan Density 210 Evasion (%) 62 Offensive Hacking 50 Defensive Hacking 15 Item Schematics ----------------- Adv. Sensor Array | -7/Factory | Hacked Adv. Terrain Scanner | -7/Factory | Hacked Adv. Terrain Scan Processor | -7/Factory | Hacked Robot Schematics ------------------ None Fabricated ------------ Adv. Transmission Jammer | x1 | -7/Factory | Preloaded Alien Tech Used ----------------- None Achievements -------------- None Challenges ------------ None RPGLIKE | -11 -10 -9 -8 -7 --------- Run | Scr Mat Mat Mat Fac Levels Raised 3 | . . 1 1 1 XP Earned 7650 | 3000 100 1500 1550 1500 XP Spent 7150 | . 2800 . . 4350 Upgrades 12 | . 7 . . 5 Power Slot 1 | . 1 . . . Propulsion Slot 1 | . 1 . . . Utility Slot 4 | . 1 . . 3 Inventory Capacity 1 | . . . . 1 Hack Attack % 2 | . 2 . . . Hack Defense % 3 | . 2 . . 1 Protomatter Created . | . . . . . Protomatter Decayed . | . . . . . Game ------ Seed GlidesysCouplerBarrier Manual? 0 Play Time 00:21:52 Cumulative 89.2 hours Start 2019.12.21 @ 18:11:46 End 2019.12.22 @ 03:02:38 Sessions 7 Manual Loads 0 Difficulty Rogue Special Mode Winter2019/RPGLIKE Game No. 121 Rogue 121 Adventurer 0 Explorer 0 Win Type - Total 8 Types 7/0/0/1/0/0/0 Lore% 48 Gallery% 60 Achievement% 48 Wizard Run 0 Options --------- ASCII 0 Keyboard 0 Movement Numpad Keybinds 0 Fullscreen 2 Font 18/SmallcapsGlow Map View 76x50 Tactical HUD 1 Map Filters NONE Filters NONE Steam 1 RUN: 88222e29-a417-46c3-8d9a-7cc6cea5733e